bitfinex/quotes_BTCUSD_20250221
["timestamp","ask_amount","ask_price","bid_price","bid_amount"]
[1740164664290,0.00033294,96605.0,96576.0,0.18454085]
[1740164664491,0.00033294,96605.0,96604.0,0.155273]
[1740164664694,0.00033294,96605.0,96604.0,0.32095954]
[1740164664890,0.00033294,96605.0,96604.0,4.70565954]
[1740164665129,0.00033294,96605.0,96604.0,4.95709954]
[1740164665719,0.00046325,96605.0,96604.0,4.95709954]
[1740164665921,0.00046325,96605.0,96604.0,4.9676875]
[1740164666182,0.00046325,96605.0,96604.0,4.9726875]
[1740164666398,0.00046325,96605.0,96604.0,4.9696875]
[1740164666602,0.00046325,96605.0,96604.0,4.9766875]
[1740164667027,0.00046325,96605.0,96604.0,4.9746875]
[1740164667288,0.00146325,96605.0,96604.0,4.9806875]
[1740164667993,0.00046325,96605.0,96604.0,4.9746875]
[1740164668146,0.00146325,96605.0,96604.0,4.9876875]
[1740164668676,0.00146325,96605.0,96604.0,4.3708475]
[1740164668893,0.00146325,96605.0,96604.0,2.5219875]
[1740164669082,0.00146325,96605.0,96604.0,1.62950665]
[1740164669308,0.00046325,96605.0,96604.0,0.33984665]
[1740164669518,0.00046325,96605.0,96604.0,0.43250665]
[1740164669724,0.00046325,96605.0,96604.0,0.12023365]
[1740164669900,0.00046325,96605.0,96604.0,0.11664569]
[1740164670129,0.00046325,96605.0,96604.0,0.26491869]
[1740164670358,0.00146325,96605.0,96604.0,0.26991869]
[1740164671217,0.00146325,96605.0,96604.0,3.51321869]
[1740164671513,0.00046325,96605.0,96604.0,6.20826294]
[1740164671945,0.00046325,96605.0,96604.0,6.21226294]
[1740164672434,0.00046325,96605.0,96604.0,6.20126294]
[1740164672561,0.00046325,96605.0,96604.0,6.20826294]
[1740164672766,0.00046325,96605.0,96604.0,6.21126294]
[1740164673197,0.00046325,96605.0,96604.0,6.20126294]
[1740164673394,0.00046325,96605.0,96604.0,6.20626294]
[1740164673395,0.00146325,96605.0,96604.0,6.20626294]
[1740164674116,0.00046325,96605.0,96604.0,6.20126294]
[1740164674323,0.00146325,96605.0,96604.0,6.20626294]
[1740164674714,0.00146325,96605.0,96604.0,6.22110294]
[1740164674844,0.00146325,96605.0,96604.0,6.21510294]
[1740164675040,0.00146325,96605.0,96604.0,0.85019793]
[1740164675372,0.00146325,96605.0,96604.0,0.42875869]
[1740164675845,0.00146325,96605.0,96604.0,0.11464569]
[1740164676139,0.00046325,96605.0,96604.0,0.10264569]
[1740164676394,0.00046325,96605.0,96604.0,0.0116994]
[1740164676395,0.00146325,96605.0,96604.0,0.0116994]
[1740164676864,0.00046325,96605.0,96604.0,0.0076994]
[1740164677092,0.00046325,96605.0,96604.0,0.1629724]
[1740164677338,0.00146325,96605.0,96604.0,0.0126994]
[1740164677757,0.00046325,96605.0,96604.0,0.0146994]
[1740164678205,0.00046325,96605.0,96604.0,0.0016994]
[1740164678523,0.22036728,96605.0,96604.0,0.0026994]
[1740164678939,0.37563828,96605.0,96604.0,0.0026994]
[1740164679384,0.22036728,96605.0,96604.0,0.0056994]
[1740164680233,0.37563828,96605.0,96604.0,0.0056994]
[1740164680971,0.52563828,96605.0,96604.0,0.0056994]
[1740164682143,0.37036728,96605.0,96604.0,0.0056994]
[1740164682582,0.52563828,96605.0,96604.0,0.0056994]
[1740164684158,0.22036728,96605.0,96604.0,0.0056994]
[1740164684782,0.22036728,96605.0,96604.0,0.0046994]
[1740164685412,0.22036728,96605.0,96604.0,0.0016994]
[1740164685633,0.22036728,96605.0,96604.0,0.1569724]
[1740164685634,0.22236728,96605.0,96604.0,0.1569724]
[1740164685964,0.22536728,96605.0,96604.0,0.1569724]
[1740164686180,0.22336728,96605.0,96604.0,0.1569724]
[1740164686385,0.22336728,96605.0,96604.0,0.0016994]
[1740164686585,0.22536728,96605.0,96604.0,0.1569724]
[1740164686790,0.22536728,96605.0,96604.0,0.0016994]
[1740164687215,0.22036728,96605.0,96604.0,0.10434509]
[1740164687422,0.22036728,96605.0,96604.0,0.25961809]
[1740164687423,0.00446325,96605.0,96604.0,0.25961809]
[1740164687979,0.00646325,96605.0,96604.0,0.26994846]
[1740164688636,0.00246325,96605.0,96604.0,0.26994846]
[1740164688838,0.00246325,96605.0,96604.0,0.25961809]
[1740164689201,0.00346325,96605.0,96604.0,0.25961809]
[1740164689456,0.00146325,96605.0,96604.0,0.10434509]
[1740164689658,0.00146325,96605.0,96604.0,0.0056994]
[1740164690526,0.00146325,96605.0,96604.0,0.0016994]
[1740164690527,0.22136728,96605.0,96604.0,0.0016994]
[1740164690774,0.22036728,96605.0,96604.0,0.0016994]
[1740164691000,0.22036728,96605.0,96604.0,0.0036994]
[1740164691225,0.22036728,96605.0,96604.0,0.0016994]
[1740164691678,0.22136728,96605.0,96604.0,0.0016994]
[1740164692151,0.22236728,96605.0,96604.0,0.0016994]
[1740164692372,0.22336728,96605.0,96604.0,0.0016994]
[1740164693132,0.22884599,96605.0,96604.0,0.0016994]
[1740164693318,0.38511699,96605.0,96604.0,0.0016994]
[1740164693511,0.22984599,96605.0,96604.0,0.0016994]
[1740164693716,0.22984599,96605.0,96604.0,0.1569724]
[1740164693717,0.22684599,96605.0,96604.0,0.1569724]
[1740164693916,0.22784599,96605.0,96604.0,0.1569724]
[1740164694194,0.22884599,96605.0,96604.0,0.1569724]
[1740164694535,0.22984599,96605.0,96604.0,0.10434509]
[1740164694726,0.22784599,96605.0,96604.0,0.10434509]
[1740164695127,0.22236728,96605.0,96604.0,0.10434509]
[1740164695380,0.22136728,96605.0,96604.0,0.10434509]
[1740164696137,0.22236728,96605.0,96604.0,0.0016994]
[1740164696373,0.22236728,96605.0,96604.0,0.1569724]
[1740164696802,0.22136728,96605.0,96604.0,0.0016994]
[1740164697059,0.22036728,96605.0,96604.0,0.0016994]
[1740164697296,0.22136728,96605.0,96604.0,0.0016994]
[1740164698098,0.22036728,96605.0,96604.0,0.0016994]
[1740164698301,0.22136728,96605.0,96604.0,0.0016994]
[1740164698480,0.22036728,96605.0,96604.0,0.0016994]
[1740164698928,0.22136728,96605.0,96604.0,0.0016994]
[1740164699191,0.37663828,96605.0,96604.0,0.0016994]
[1740164699420,0.22136728,96605.0,96604.0,0.0016994]
[1740164699831,0.22784648,96605.0,96604.0,0.0016994]
[1740164700079,0.22684648,96605.0,96604.0,0.0016994]
[1740164700400,0.63576317,96605.0,96604.0,0.0016994]
[1740164700829,0.65030402,96605.0,96604.0,0.0016994]
[1740164701787,0.63476317,96605.0,96604.0,0.0016994]
[1740164701988,0.63876317,96605.0,96604.0,0.0016994]
[1740164702198,0.64176317,96605.0,96604.0,0.0016994]
[1740164702629,0.63228397,96605.0,96604.0,0.0016994]
[1740164703067,0.63828397,96605.0,96604.0,0.0016994]
[1740164704150,0.48301297,96605.0,96604.0,0.0016994]
[1740164704302,0.63828397,96605.0,96604.0,0.0016994]
[1740164705124,0.65282482,96605.0,96604.0,0.0016994]
[1740164705775,0.67282482,96605.0,96604.0,0.0016994]
[1740164706424,0.38036728,96605.0,96604.0,0.0016994]
[1740164706627,0.23036728,96605.0,96604.0,0.0016994]
[1740164707913,0.23036728,96605.0,96604.0,0.25961809]
[1740164708119,0.22436728,96605.0,96604.0,0.10434509]
[1740164708330,0.22036728,96605.0,96604.0,0.10434509]
[1740164708533,0.22536728,96605.0,96604.0,0.10434509]
[1740164708684,0.22536728,96605.0,96604.0,0.0016994]
[1740164708884,0.22036728,96605.0,96604.0,0.0016994]
[1740164709316,0.22236728,96605.0,96604.0,0.0016994]
[1740164709514,0.22636728,96605.0,96604.0,0.0016994]
[1740164710155,0.22936728,96605.0,96604.0,0.0016994]
[1740164710325,0.23584657,96605.0,96604.0,0.0016994]
[1740164710708,0.38584657,96605.0,96604.0,0.0016994]
[1740164710912,0.48849226,96605.0,96604.0,0.0016994]
[1740164711156,0.70983775,96605.0,96604.0,0.0016994]
[1740164711367,0.81634675,96605.0,96604.0,0.0016994]
[1740164711999,0.81434675,96605.0,96604.0,0.0016994]
[1740164712217,0.82207372,96605.0,96604.0,0.0016994]
[1740164712864,0.82107372,96605.0,96604.0,0.0026994]
[1740164713037,0.81507372,96605.0,96604.0,0.0016994]
[1740164713524,0.84107372,96605.0,96604.0,0.001]
[1740164714022,0.155326,96571.0,96570.0,0.0017]
[1740164714231,0.37523003,96571.0,96570.0,0.0017]
[1740164714428,0.21990403,96571.0,96570.0,0.0017]
[1740164715246,0.22290403,96571.0,96570.0,0.0017]
[1740164715454,0.37823003,96571.0,96570.0,0.0017]
[1740164715756,0.22290403,96571.0,96570.0,0.0017]
[1740164715970,0.23238332,96571.0,96570.0,0.0017]
[1740164716781,0.38770932,96571.0,96570.0,0.0017]
[1740164716998,0.23238332,96571.0,96570.0,0.0017]
[1740164717131,0.22638332,96571.0,96570.0,0.0017]
[1740164717347,0.22938332,96571.0,96570.0,0.0017]
[1740164717777,0.22290403,96571.0,96570.0,0.0017]
[1740164718174,0.22590403,96571.0,96570.0,0.0017]
[1740164718484,0.22290403,96571.0,96570.0,0.0017]
[1740164719176,0.22190403,96571.0,96570.0,0.0017]
[1740164719766,0.22490403,96571.0,96570.0,0.0017]
[1740164720343,0.22490403,96571.0,96570.0,0.157027]
[1740164720746,0.22490403,96571.0,96570.0,0.0017]
[1740164720949,0.22290403,96571.0,96570.0,0.0017]
[1740164721151,0.22290403,96571.0,96570.0,0.25967269]
[1740164721533,0.003,96571.0,96570.0,0.25967269]
[1740164721751,0.21990403,96595.0,96578.0,0.155313]
[1740164721953,0.21990403,96595.0,96579.0,0.152313]
[1740164722158,0.21990403,96595.0,96570.0,0.50721446]
[1740164722370,0.21990403,96595.0,96578.0,0.155313]
[1740164722574,0.21990403,96595.0,96571.0,0.10264569]
[1740164722774,0.21990403,96595.0,96577.0,0.155316]
[1740164722990,0.21990403,96595.0,96578.0,0.155314]
[1740164723277,0.22490403,96595.0,96579.0,0.10264569]
[1740164723481,0.22490403,96595.0,96582.0,0.207077]
[1740164723624,0.22490403,96595.0,96583.0,0.10264569]
[1740164723826,0.22490403,96595.0,96588.0,0.155297]
[1740164724034,0.22490403,96595.0,96583.0,0.30972069]
[1740164724035,0.22490403,96595.0,96594.0,0.155289]
[1740164724468,0.22790403,96595.0,96594.0,0.155289]
[1740164724687,0.22790403,96595.0,96591.0,0.155293]
[1740164724923,0.22890403,96595.0,96593.0,0.15529]
[1740164725042,0.22890403,96595.0,96590.0,0.18304569]
[1740164725043,0.23090403,96595.0,96594.0,0.155289]
[1740164725245,0.002,96595.0,96594.0,0.30743469]
[1740164725450,0.004,96595.0,96594.0,0.30743469]
[1740164725645,0.004,96595.0,96594.0,5.13396969]
[1740164725851,0.004,96595.0,96594.0,5.29851054]
[1740164726065,0.005,96595.0,96594.0,5.29851054]
[1740164726282,0.002,96595.0,96594.0,5.29851054]
[1740164726514,0.002,96595.0,96594.0,4.57397554]
[1740164726863,0.002,96595.0,96594.0,1.31733469]
[1740164727231,0.0008505,96604.0,96603.0,0.305274]
[1740164727432,0.00097644,96604.0,96603.0,0.40791969]
[1740164727832,0.00097644,96604.0,96603.0,0.48411969]
[1740164728030,0.00097644,96604.0,96603.0,0.17884569]
[1740164728234,0.00097644,96604.0,96603.0,0.33411969]
[1740164728638,0.00097644,96604.0,96594.0,0.0525]
[1740164728846,0.30624944,96604.0,96603.0,0.005]
[1740164729088,0.62674944,96604.0,96603.0,0.005]
[1740164729662,0.15,96603.0,96577.0,0.0828]
[1740164729861,0.3205,96602.0,96583.0,0.155305]
[1740164730241,0.3205,96602.0,96577.0,0.0828]
[1740164730371,0.3205,96602.0,96578.0,0.10264569]
[1740164730574,0.3205,96602.0,96586.0,0.155301]
[1740164730918,0.20772232,96601.0,96578.0,0.10264569]
[1740164731153,0.00068532,96601.0,96577.0,0.0828]
[1740164731330,0.3205,96602.0,96578.0,0.10264569]
[1740164731485,0.3265,96602.0,96585.0,0.155302]
[1740164731890,0.3265,96602.0,96583.0,0.207075]
[1740164731891,0.3265,96602.0,96578.0,0.10264569]
[1740164732212,0.005,96601.0,96580.0,0.207082]
[1740164732426,0.005,96601.0,96581.0,0.25795569]
[1740164732623,0.005,96601.0,96585.0,0.155303]
[1740164732828,0.3265,96602.0,96585.0,0.155303]
[1740164733031,0.3265,96602.0,96584.0,0.155304]
[1740164733210,0.3255,96602.0,96585.0,0.155302]
[1740164733408,0.3255,96602.0,96581.0,0.10264569]
[1740164733610,0.005,96601.0,96581.0,0.10264569]
[1740164733811,0.005,96601.0,96596.0,0.155285]
[1740164734036,0.3255,96602.0,96596.0,0.155285]
[1740164734237,0.3305,96602.0,96594.0,0.207051]
[1740164734439,0.3255,96602.0,96601.0,0.155277]
[1740164734641,0.3255,96602.0,96601.0,0.25792269]
[1740164735028,0.00097644,96604.0,96603.0,0.155274]
[1740164735279,0.00097644,96604.0,96603.0,0.25391969]
[1740164736093,0.00097644,96604.0,96603.0,0.40391969]
[1740164736266,0.00097644,96604.0,96603.0,5.14775469]
[1740164736510,0.00097644,96604.0,96603.0,5.14975469]
[1740164736921,0.00097644,96604.0,96603.0,4.13451969]
[1740164737690,0.00197644,96604.0,96603.0,4.13951969]
[1740164737890,0.00197644,96604.0,96603.0,4.14551969]
[1740164738250,0.00197644,96604.0,96603.0,4.13951969]
[1740164738620,0.00197644,96604.0,96603.0,1.06265969]
[1740164738767,0.00197644,96604.0,96603.0,0.83485969]
[1740164738975,0.00197644,96604.0,96603.0,0.81925969]
[1740164739199,0.00197644,96604.0,96603.0,0.42575969]
[1740164739396,0.00197644,96604.0,96603.0,0.82055969]
[1740164739740,0.00097644,96604.0,96603.0,0.78655969]
[1740164739950,0.00197644,96604.0,96603.0,0.80128281]
[1740164740132,0.00197644,96604.0,96603.0,0.79355969]
[1740164740394,0.00097644,96604.0,96603.0,0.78655969]
[1740164740829,0.00197644,96604.0,96603.0,0.48944569]
[1740164741044,0.00197644,96604.0,96603.0,0.007]
[1740164741465,0.00197644,96604.0,96603.0,0.013]
[1740164741638,0.00197644,96604.0,96592.0,0.0801]
[1740164741639,0.00097644,96604.0,96592.0,0.0801]
[1740164741839,0.00097644,96604.0,96591.0,0.15]
[1740164741840,0.00097644,96604.0,96603.0,0.006]
[1740164742241,0.00097644,96604.0,96593.0,0.10264569]
[1740164742444,0.00097644,96604.0,96603.0,0.004]
[1740164743425,0.00197644,96604.0,96603.0,0.01]
[1740164743648,0.00197644,96604.0,96603.0,0.10864569]
[1740164743857,0.00097644,96604.0,96603.0,0.10264569]
[1740164744071,0.00097644,96604.0,96603.0,0.10564569]
[1740164744393,0.00097644,96604.0,96603.0,0.008]
[1740164745940,0.00166176,96604.0,96603.0,0.008]
[1740164746876,0.32216176,96604.0,96603.0,0.008]
[1740164747073,0.32147644,96604.0,96603.0,0.008]
[1740164748105,0.47147644,96604.0,96603.0,0.008]
[1740164748323,0.57412213,96604.0,96603.0,0.008]
[1740164748882,0.57412213,96604.0,96603.0,0.005]
[1740164749050,0.58866298,96604.0,96603.0,0.005]
[1740164749248,0.63586298,96604.0,96603.0,0.005]
[1740164749459,0.155309,96582.0,96570.0,0.0017]
[1740164749707,0.3205,96581.0,96570.0,0.0017]
[1740164750505,0.3205,96581.0,96570.0,0.0027]
[1740164750683,0.3105,96581.0,96570.0,0.0027]
[1740164751083,0.3105,96581.0,96570.0,0.0017]
[1740164751285,0.3105,96581.0,96570.0,0.0027]
[1740164751593,0.3105,96581.0,96570.0,0.10534569]
[1740164751794,0.3105,96581.0,96571.0,0.10264569]
[1740164753058,0.3105,96581.0,96571.0,0.10364569]
[1740164753355,0.155284,96597.0,96571.0,0.10364569]
[1740164753356,0.15,96595.0,96571.0,0.10364569]
[1740164753561,0.4605,96595.0,96571.0,0.10364569]
[1740164753770,0.3105,96595.0,96571.0,0.10364569]
[1740164754340,0.3105,96595.0,96571.0,0.10264569]
[1740164754546,0.3145,96595.0,96572.0,0.1233]
[1740164754757,0.3145,96595.0,96573.0,0.10264569]
[1740164754758,0.3185,96595.0,96573.0,0.10264569]
[1740164756004,0.3105,96595.0,96570.0,0.0017]
[1740164756226,0.00068532,96594.0,96570.0,0.0017]
[1740164756401,0.155298,96589.0,96570.0,0.0017]
[1740164756622,0.3105,96588.0,96570.0,0.0017]
[1740164756800,0.155303,96586.0,96570.0,0.0017]
[1740164757002,0.31118532,96588.0,96570.0,0.0017]
[1740164757003,0.3105,96588.0,96570.0,0.0017]
[1740164757387,0.465798,96588.0,96570.0,0.0017]
[1740164757823,0.3105,96588.0,96570.0,0.0017]
[1740164758023,0.465799,96588.0,96573.0,0.001701]
[1740164758241,0.3105,96588.0,96573.0,0.001701]
[1740164759145,0.3105,96588.0,96573.0,0.10434669]
[1740164759350,0.3115,96588.0,96574.0,0.10264569]
[1740164759846,0.002,96586.0,96574.0,0.10264569]
[1740164760517,0.00068532,96585.0,96573.0,0.001701]
[1740164760718,0.15598932,96585.0,96573.0,0.001701]
[1740164760924,0.3135,96588.0,96573.0,0.001701]
[1740164761259,0.00068532,96584.0,96573.0,0.001701]
[1740164761572,0.155311,96580.0,96573.0,0.001701]
[1740164761774,0.002,96586.0,96573.0,0.001701]
[1740164761996,0.002,96586.0,96574.0,0.10264569]
[1740164762887,0.3125,96588.0,96582.0,0.155307]
[1740164762888,0.3105,96588.0,96582.0,0.155307]
[1740164763054,0.3105,96588.0,96575.0,4.82127739]
[1740164763055,0.3105,96588.0,96583.0,0.10264569]
[1740164763392,0.3125,96588.0,96583.0,0.10264569]
[1740164763669,0.002,96586.0,96583.0,0.10264569]
[1740164764081,0.3105,96588.0,96584.0,0.0451]
[1740164764286,0.3125,96588.0,96585.0,0.10264569]
[1740164764912,0.3125,96588.0,96586.0,0.155301]
[1740164765111,0.3135,96588.0,96587.0,0.10171225]
[1740164765413,0.003,96588.0,96587.0,0.40701225]
[1740164765558,0.002,96588.0,96587.0,0.48941225]
[1740164765711,0.002,96588.0,96587.0,6.27251726]
[1740164766076,0.00033294,96605.0,96603.0,0.155274]
[1740164766281,0.00033294,96605.0,96603.0,0.25791969]
[1740164766844,0.00033294,96605.0,96603.0,5.08435469]
[1740164767043,0.00033294,96605.0,96603.0,4.87461969]
[1740164767807,0.00033294,96605.0,96603.0,4.80321969]
[1740164768165,0.00033294,96605.0,96603.0,5.50321969]
[1740164768572,0.00033294,96605.0,96603.0,5.50721969]
[1740164768904,0.00033294,96605.0,96603.0,5.50321969]
[1740164769264,0.00197644,96604.0,96603.0,5.50921969]
[1740164769460,0.00197644,96604.0,96603.0,5.51321969]
[1740164769887,0.00097644,96604.0,96603.0,5.50321969]
[1740164770085,0.00097644,96604.0,96603.0,5.50721969]
[1740164770292,0.00097644,96604.0,96603.0,6.6820979]
[1740164771064,0.00097644,96604.0,96603.0,2.2673979]
[1740164771241,0.00197644,96604.0,96603.0,7.0172329]
[1740164771378,0.00197644,96604.0,96603.0,7.0132329]
[1740164771815,0.00097644,96604.0,96603.0,7.0072329]
[1740164772044,0.00197644,96604.0,96603.0,7.0132329]
[1740164772574,0.00097644,96604.0,96603.0,7.0072329]
[1740164772780,0.00097644,96604.0,96603.0,7.0142329]
[1740164772984,0.00197644,96604.0,96603.0,7.0202329]
[1740164773163,0.00197644,96604.0,96603.0,7.13836115]
[1740164773366,0.00197644,96604.0,96603.0,7.14536115]
[1740164773571,0.00197644,96604.0,96603.0,7.13136115]
[1740164773765,0.00197644,96604.0,96603.0,7.13836115]
[1740164774178,0.00097644,96604.0,96603.0,7.13236115]
[1740164774380,0.00097644,96604.0,96603.0,7.13936115]
[1740164774580,0.00097644,96604.0,96603.0,7.14636115]
[1740164774972,0.00097644,96604.0,96603.0,7.13936115]
[1740164775415,0.0008518,96622.0,96613.0,0.20701]
[1740164775552,0.3105,96644.0,96627.0,0.381036]
[1740164775745,0.3105,96661.0,96638.0,0.45165885]
[1740164775942,0.00092814,96639.0,96638.0,1.59554998]
[1740164776150,0.00092814,96639.0,96638.0,4.77254998]
[1740164776351,0.00092814,96639.0,96638.0,5.15314998]
[1740164776558,0.00092814,96639.0,96638.0,5.85314998]
[1740164777187,0.00092814,96639.0,96638.0,5.86953881]
[1740164777885,0.00092814,96639.0,96638.0,5.87653881]
[1740164778088,1.4e-07,96639.0,96638.0,5.89653881]
[1740164778303,1.4e-07,96639.0,96638.0,2.34593881]
[1740164778496,0.09164755,96678.0,96638.0,2.34593881]
[1740164778497,0.09004829,96678.0,96649.0,0.083]
[1740164778727,0.09004829,96678.0,96677.0,0.155155]
[1740164778931,0.09048279,96678.0,96677.0,4.05310069]
[1740164779127,0.09048279,96678.0,96677.0,4.13320069]
[1740164779356,0.09048279,96678.0,96677.0,3.32170069]
[1740164779763,0.09048279,96678.0,96677.0,4.17170069]
[1740164780209,0.09048279,96678.0,96677.0,4.22498951]
[1740164780418,0.09048279,96678.0,96677.0,4.17570069]
[1740164780419,0.0004345,96678.0,96677.0,4.17570069]
[1740164780651,0.0004345,96678.0,96677.0,4.18469282]
[1740164781211,0.0004345,96678.0,96677.0,1.47643586]
[1740164781615,0.0004345,96678.0,96677.0,1.48143586]
[1740164782261,0.0004345,96678.0,96677.0,1.47643586]
[1740164782598,0.0004345,96678.0,96677.0,1.47243586]
[1740164782719,0.0004345,96678.0,96677.0,1.64891688]
[1740164783312,0.0004345,96678.0,96677.0,2.67364604]
[1740164784145,0.00034279,96678.0,96677.0,2.67764604]
[1740164784347,0.00034279,96678.0,96677.0,2.66310519]
[1740164784561,0.00034279,96678.0,96677.0,1.17178086]
[1740164784764,0.00034279,96678.0,96677.0,1.16778086]
[1740164784935,0.00034279,96678.0,96677.0,1.17378086]
[1740164785280,0.00034279,96678.0,96677.0,1.33862732]
[1740164785483,0.00034279,96678.0,96677.0,1.35316817]
[1740164785723,0.00034279,96678.0,96677.0,1.41572732]
[1740164785936,0.00034279,96678.0,96677.0,1.42172732]
[1740164786134,0.00034279,96678.0,96677.0,1.34062732]
[1740164786312,0.00034279,96678.0,96677.0,1.16772732]
[1740164786516,0.00034279,96678.0,96677.0,1.17372732]
[1740164786922,0.00034279,96678.0,96677.0,1.15988086]
[1740164787133,0.00034279,96678.0,96677.0,1.31503586]
[1740164787332,0.00034279,96678.0,96677.0,1.32103586]
[1740164787536,0.00034279,96678.0,96677.0,1.31503586]
[1740164787958,0.00034279,96678.0,96677.0,1.30803586]
[1740164788156,0.00034279,96678.0,96677.0,1.31503586]
[1740164788362,0.00034279,96678.0,96677.0,1.46503586]
[1740164788740,0.00034279,96678.0,96677.0,1.47103586]
[1740164789169,0.00034279,96678.0,96677.0,1.45903586]
[1740164789342,0.00034279,96678.0,96677.0,1.46503586]
[1740164790081,0.00034279,96678.0,96677.0,1.45803586]
[1740164790289,0.00034279,96678.0,96677.0,1.45903586]
[1740164790442,0.00034279,96678.0,96677.0,1.46503586]
[1740164790636,0.00034279,96678.0,96677.0,1.45803586]
[1740164790888,0.00034279,96678.0,96677.0,1.13713586]
[1740164791751,0.00034279,96678.0,96677.0,0.96813586]
[1740164791947,0.00034279,96678.0,96677.0,0.97513586]
[1740164792159,0.00034279,96678.0,96677.0,0.98113586]
[1740164793549,0.00034279,96678.0,96677.0,0.81564569]
[1740164793674,0.00034279,96678.0,96677.0,0.713]
[1740164794062,0.00034279,96678.0,96677.0,0.168155]
[1740164794261,0.00034279,96678.0,96677.0,0.27080069]
[1740164794483,0.00119299,96678.0,96677.0,0.27080069]
[1740164794739,0.00119299,96678.0,96677.0,0.26380069]
[1740164795058,0.00119299,96678.0,96677.0,0.95780069]
[1740164795545,0.00119299,96678.0,96677.0,1.10780069]
[1740164796507,0.00119299,96678.0,96677.0,5.87017654]
[1740164796908,0.00119299,96678.0,96677.0,5.86917654]
[1740164797324,0.00119299,96678.0,96677.0,5.87417654]
[1740164797746,0.00119299,96678.0,96677.0,5.88917654]
[1740164798269,0.00119299,96678.0,96677.0,5.87617654]
[1740164798670,0.00119299,96678.0,96677.0,5.87917654]
[1740164798870,0.00119299,96678.0,96677.0,4.95614154]
[1740164799104,0.00119299,96678.0,96677.0,4.94160069]
[1740164799228,0.00119299,96678.0,96677.0,2.54470069]
[1740164799575,0.00119299,96678.0,96677.0,2.45440069]
[1740164799775,0.00119299,96678.0,96677.0,2.46840069]
[1740164799984,0.00119299,96678.0,96677.0,2.4895328]
[1740164800213,0.00119299,96678.0,96677.0,2.4825328]
[1740164800691,0.00119299,96678.0,96677.0,2.4271328]
[1740164801135,0.00119299,96678.0,96677.0,2.2767328]
[1740164801509,0.00119299,96678.0,96677.0,2.2136328]
[1740164802036,0.00119299,96678.0,96677.0,1.5183328]
[1740164802360,0.00119299,96678.0,96677.0,0.97180069]
[1740164803293,0.00119299,96678.0,96677.0,0.96480069]
[1740164803566,0.00119299,96678.0,96677.0,2.73680069]
[1740164803769,0.00119299,96678.0,96677.0,5.73017654]
[1740164803972,0.00119299,96678.0,96677.0,5.88017654]
[1740164804290,0.00119299,96678.0,96677.0,6.00457654]
[1740164804524,0.00119299,96678.0,96677.0,6.02457654]
[1740164804728,0.00119299,96678.0,96677.0,6.01757654]
[1740164805047,0.00119299,96678.0,96677.0,6.02457654]
[1740164805291,0.00119299,96678.0,96677.0,6.01757654]
[1740164805503,0.00119299,96678.0,96677.0,6.01057654]
[1740164805816,1e-08,96678.0,96677.0,5.47224114]
[1740164806045,1e-08,96678.0,96677.0,1.26244114]
[1740164806376,1e-08,96678.0,96677.0,1.25544114]
[1740164806577,1e-08,96678.0,96677.0,1.26244114]
[1740164807183,1e-08,96678.0,96677.0,1.25544114]
[1740164807406,1e-08,96678.0,96677.0,1.26244114]
[1740164807812,1e-08,96678.0,96677.0,1.25544114]
[1740164808163,1e-08,96678.0,96677.0,1.26244114]
[1740164810669,1e-08,96678.0,96677.0,1.27124114]
[1740164810921,0.0008493,96702.0,96678.0,0.00074999]
[1740164811071,0.00098092,96685.0,96684.0,0.42233054]
[1740164811509,0.00098092,96685.0,96684.0,5.16616554]
[1740164811881,0.00098092,96685.0,96684.0,5.17381692]
[1740164812082,3.2e-07,96694.0,96693.0,0.30513]
[1740164812287,0.0008493,96702.0,96697.0,0.16966385]
[1740164812288,4e-07,96698.0,96697.0,0.16966385]
[1740164812488,4e-07,96698.0,96697.0,0.4235501]
[1740164812690,4e-07,96698.0,96697.0,0.42230954]
[1740164813089,4e-07,96698.0,96697.0,1.12230954]
[1740164814149,4e-07,96698.0,96697.0,1.13810954]
[1740164814939,0.0008106,96701.0,96700.0,0.305118]
[1740164815143,0.0008106,96701.0,96700.0,5.86613954]
[1740164815345,6e-07,96701.0,96700.0,5.89834137]
[1740164815545,6e-07,96701.0,96700.0,1.15450637]
[1740164815781,0.0008505,96715.0,96700.0,1.15450637]
[1740164815782,0.0008505,96715.0,96714.0,0.31963685]
[1740164815972,0.00098067,96715.0,96714.0,7.21572491]
[1740164816181,0.00098067,96715.0,96714.0,7.91572491]
[1740164817441,0.00098067,96715.0,96714.0,7.92272491]
[1740164818057,0.00098067,96715.0,96714.0,7.92972491]
[1740164818361,0.00098067,96715.0,96714.0,5.40938991]
[1740164819098,0.00098067,96715.0,96714.0,5.41273777]
[1740164819543,0.00098067,96715.0,96714.0,5.4206524]
[1740164819747,0.00098067,96715.0,96714.0,5.4136524]
[1740164820040,0.00098067,96715.0,96714.0,5.4977524]
[1740164821247,0.00098067,96715.0,96714.0,5.4907524]
[1740164821441,0.00098067,96715.0,96714.0,5.4136524]
[1740164821718,0.00098067,96715.0,96714.0,4.05358239]
[1740164821934,0.00098067,96715.0,96714.0,0.82699355]
[1740164822144,0.00098067,96715.0,96714.0,0.82364569]
[1740164822370,0.00098067,96715.0,96714.0,0.714]
[1740164822539,0.00098067,96715.0,96714.0,0.862096]
[1740164822950,0.00098067,96715.0,96714.0,0.707]
[1740164823255,0.00098067,96715.0,96714.0,0.855096]
[1740164823989,0.00098067,96715.0,96714.0,0.96474169]
[1740164824231,0.00098067,96715.0,96714.0,0.96974169]
[1740164824496,0.00088898,96715.0,96714.0,0.96974169]
[1740164824682,0.00013898,96715.0,96714.0,0.97074169]
[1740164824924,0.00013898,96715.0,96714.0,4.37354169]
[1740164825132,0.00013898,96715.0,96714.0,1.13528254]
[1740164825333,0.00013898,96715.0,96714.0,1.11274169]
[1740164825535,0.00013898,96715.0,96714.0,5.12394169]
[1740164825683,0.00013898,96715.0,96714.0,5.85957669]
[1740164825906,0.00013898,96715.0,96714.0,5.95021754]
[1740164826490,0.00013898,96715.0,96714.0,5.95221754]
[1740164827012,0.00013898,96715.0,96714.0,5.95021754]
[1740164827371,0.00013898,96715.0,96714.0,5.95421754]
[1740164827721,0.00013898,96715.0,96714.0,5.95221754]
[1740164828293,9.8e-07,96715.0,96714.0,5.95821754]
[1740164828471,0.0004,96729.0,96728.0,0.305074]
[1740164828694,0.0004,96729.0,96728.0,2.1469897]
[1740164828846,0.0004,96729.0,96728.0,6.8908247]
[1740164829048,0.0004,96729.0,96728.0,5.0807897]
[1740164829250,0.0004,96729.0,96728.0,1.36686054]
[1740164829458,0.0004,96729.0,96728.0,1.35231969]
[1740164829676,0.0004,96729.0,96728.0,1.16491969]
[1740164830031,0.0004,96729.0,96728.0,1.17191969]
[1740164830476,0.0004,96729.0,96728.0,1.18646054]
[1740164830677,0.0004,96729.0,96728.0,0.97226054]
[1740164830920,0.0004,96729.0,96728.0,5.03726054]